fUST/lending_fUST_20250727
["ID","MTS","AMOUNT","RATE_DAILY","PERIOD"]
[375204738,1753584654202,-460.0,0.0002,2]
[375204739,1753584654211,-460.0,0.0002,2]
[375204740,1753584654220,-877.28,0.0002,2]
[375204741,1753584654230,-460.0,0.0002,2]
[375204742,1753584654239,-737.71,0.0002,2]
[375204743,1753584654248,-460.0,0.0002,2]
[375204744,1753584654258,-509.31,0.0002,2]
[375204745,1753584654267,-460.0,0.0002,2]
[375204746,1753584654278,-460.0,0.0002,2]
[375204747,1753584654288,-463.68,0.0002,2]
[375204748,1753584654297,-2088.08,0.0002,2]
[375204749,1753584654307,-460.0,0.0002,2]
[375204750,1753584654317,-460.0,0.0002,2]
[375204751,1753584654326,-1803.05,0.0002,2]
[375204752,1753584654336,-744.6,0.0002,2]
[375204753,1753584654345,-460.0,0.0002,2]
[375204754,1753584654356,-811.3,0.0002,2]
[375204755,1753584654368,-460.0,0.0002,2]
[375204756,1753584654380,-460.0,0.0002,2]
[375204757,1753584654391,-460.0,0.0002,2]
[375204758,1753584654402,-8629.65,0.0002,2]
[375204759,1753584654413,-512.39,0.0002,2]
[375204760,1753584654424,-460.0,0.0002,2]
[375204761,1753584654435,-666.66,0.0002,2]
[375204762,1753584654446,-720.17,0.0002,2]
[375204763,1753584654457,-460.0,0.0002,2]
[375204764,1753584654470,-720.65,0.0002,2]
[375204765,1753584654480,-460.0,0.0002,2]
[375204766,1753584654490,-460.0,0.0002,2]
[375204767,1753584654500,-191.77357373,0.0002,2]
[375204768,1753584654510,-460.0,0.0002,2]
[375204769,1753584654520,-460.0,0.0002,2]
[375204770,1753584654529,-460.0,0.0002,2]
[375204771,1753584654540,-320.21407112,0.0002,2]
[375204772,1753584654550,-460.0,0.0002,2]
[375204773,1753584654560,-460.0,0.0002,2]
[375204774,1753584654571,-460.0,0.0002,2]
[375204775,1753584654585,-460.0,0.0002,2]
[375204776,1753584654594,-460.0,0.0002,2]
[375204777,1753584654604,-455.84557841,0.0002,2]
[375204778,1753584654614,-460.0,0.0002,2]
[375204779,1753584654623,-671.34,0.0002,2]
[375204780,1753584654633,-460.0,0.0002,2]
[375204781,1753584654643,-460.0,0.0002,2]
[375204782,1753584654653,-471.92079923,0.0002,2]
[375204783,1753584654662,-460.0,0.0002,2]
[375204784,1753584654671,-575.98,0.0002,2]
[375204785,1753584654681,-464.84625056,0.0002,2]
[375204786,1753584654691,-460.0,0.0002,2]
[375204787,1753584654701,-460.0,0.0002,2]
[375204788,1753584654710,-540.0,0.0002,2]
[375204789,1753584654719,-460.0,0.0002,2]
[375204790,1753584654729,-460.0,0.0002,2]
[375204791,1753584654738,-460.0,0.0002,2]
[375204792,1753584654748,-460.0,0.0002,2]
[375204793,1753584654758,-1409.95777725,0.00020068,2]
[375204794,1753584654767,-1500.0,0.00020068,2]
[375204795,1753584654777,-1105.0,0.000201,2]
[375204796,1753584654787,-151.0,0.000201,3]
[375204797,1753584654797,-3699.02174736,0.00020107,2]
[375204798,1753584654807,-220.757482,0.00020187,2]
[375204799,1753584654817,-1003.74830139,0.00020268,2]
[375204800,1753584654827,-1507.8832997,0.00020268,2]
[375204801,1753584654837,-1500.0,0.00020268,2]
[375204802,1753584654846,-460.0,0.00020273,2]
[375204803,1753584654856,-460.0,0.00020273,2]
[375204804,1753584654865,-460.0,0.00020273,2]
[375204805,1753584654874,-189.94795967,0.00020273,2]
[375204806,1753584654884,-460.0,0.00020273,2]
[375204807,1753584654894,-353.04,0.00020273,2]
[375204808,1753584654903,-460.0,0.00020273,2]
[375204809,1753584654912,-460.0,0.00020273,2]
[375204810,1753584654922,-460.0,0.00020273,2]
[375204811,1753584654931,-2270.75,0.00020273,2]
[375204812,1753584654940,-460.0,0.00020273,2]
[375204813,1753584654951,-460.0,0.00020273,2]
[375204814,1753584654961,-460.0,0.00020273,2]
[375204815,1753584654970,-460.0,0.00020273,2]
[375204816,1753584654980,-544.18,0.00020273,2]
[375204817,1753584654990,-460.0,0.00020273,2]
[375204818,1753584655000,-378.9579441,0.00020273,2]
[375204819,1753584655011,-1567.62,0.00020273,2]
[375204820,1753584655020,-460.0,0.00020273,2]
[375204821,1753584655029,-460.0,0.00020273,2]
[375204822,1753584655039,-460.0,0.00020273,2]
[375204823,1753584655049,-465.82977782,0.00020273,2]
[375204824,1753584655058,-484.59,0.00020273,2]
[375204825,1753584655067,-460.0,0.00020273,2]
[375204826,1753584655077,-460.0,0.00020273,2]
[375204827,1753584655087,-460.0,0.00020273,2]
[375204828,1753584655098,-460.0,0.00020273,2]
[375204829,1753584655108,-460.0,0.00020273,2]
[375204830,1753584655118,-460.0,0.00020273,2]
[375204831,1753584655128,-460.0,0.00020273,2]
[375204832,1753584655138,-460.0,0.00020273,2]
[375204833,1753584655150,-466.95358508,0.00020273,2]
[375204834,1753584655159,-460.0,0.00020273,2]
[375204835,1753584655169,-733.17,0.00020273,2]
[375204836,1753584655178,-460.0,0.00020273,2]
[375204837,1753584655188,-464.754519,0.00020273,2]
[375204838,1753584655198,-460.0,0.00020273,2]
[375204839,1753584655207,-769.79,0.00020273,2]
[375204840,1753584655217,-460.0,0.00020273,2]
[375204841,1753584655226,-628.61,0.00020273,2]
[375204842,1753584655236,-460.0,0.00020273,2]
[375204843,1753584655246,-460.0,0.00020273,2]
[375204844,1753584655255,-460.0,0.00020273,2]
[375204845,1753584655265,-460.0,0.00020273,2]
[375204846,1753584655275,-460.0,0.00020273,2]
[375204847,1753584655284,-460.0,0.00020273,2]
[375204848,1753584655294,-460.0,0.00020273,2]
[375204849,1753584655303,-460.0,0.00020273,2]
[375204850,1753584655312,-460.0,0.00020273,2]
[375204851,1753584655322,-462.78,0.00020273,2]
[375204852,1753584655331,-460.0,0.00020273,2]
[375204853,1753584655341,-460.0,0.00020273,2]
[375204854,1753584655351,-210.47379534,0.00020273,2]
[375204855,1753584655361,-460.0,0.00020273,2]
[375204856,1753584655370,-460.0,0.00020273,2]
[375204857,1753584655380,-467.68,0.00020273,2]
[375204858,1753584655389,-460.0,0.00020273,2]
[375204859,1753584655398,-460.0,0.00020273,2]
[375204860,1753584655408,-460.0,0.00020273,2]
[375204861,1753584655417,-460.0,0.00020273,2]
[375204862,1753584655427,-1855.52,0.00020273,2]
[375204863,1753584655436,-460.0,0.00020273,2]
[375204864,1753584655446,-460.0,0.00020273,2]
[375204865,1753584655455,-460.0,0.00020273,2]
[375204866,1753584655465,-460.0,0.00020273,2]
[375204867,1753584655474,-460.0,0.00020273,2]
[375204868,1753584655484,-460.0,0.00020273,2]
[375204869,1753584655493,-882.06,0.00020273,2]
[375204870,1753584655503,-688.84,0.00020273,2]
[375204871,1753584655513,-460.0,0.00020273,2]
[375204872,1753584655523,-460.0,0.00020273,2]
[375204873,1753584655533,-460.0,0.00020273,2]
[375204874,1753584655543,-460.0,0.00020273,2]
[375204875,1753584655552,-4238.22,0.00020273,2]
[375204876,1753584655562,-460.0,0.00020273,2]
[375204877,1753584655573,-460.0,0.00020273,2]
[375204878,1753584655584,-460.0,0.00020273,2]
[375204879,1753584655594,-460.0,0.00020273,2]
[375204880,1753584655604,-2826.79,0.00020273,2]
[375204881,1753584655613,-181.08,0.00020273,2]
[375204882,1753584655625,-460.0,0.00020273,2]
[375204883,1753584655634,-460.0,0.00020273,2]
[375204884,1753584655644,-460.0,0.00020273,2]
[375204885,1753584655740,-1620.32,0.00020273,2]
[375204886,1753584655751,-480.38,0.00020273,2]
[375204887,1753584655761,-460.0,0.00020273,2]
[375204888,1753584655771,-2191.67,0.00020273,2]
[375204889,1753584655781,-616.59,0.00020273,2]
[375204890,1753584655790,-533.3,0.00020273,2]
[375204891,1753584655800,-460.0,0.00020273,2]
[375204892,1753584655809,-460.0,0.00020273,2]
[375204893,1753584655819,-1034.53,0.00020273,2]
[375204894,1753584655829,-460.0,0.00020273,2]
[375204895,1753584655838,-460.0,0.00020273,2]
[375204896,1753584655848,-1110.96,0.00020273,2]
[375204897,1753584655857,-460.0,0.00020273,2]
[375204898,1753584655867,-460.0,0.00020273,2]
[375204899,1753584655878,-460.0,0.00020273,2]
[375204900,1753584655887,-2727.04,0.00020273,2]
[375204901,1753584655897,-460.0,0.00020273,2]
[375204902,1753584655907,-460.0,0.00020273,2]
[375204903,1753584655917,-460.0,0.00020273,2]
[375204904,1753584655927,-1595.2,0.00020273,2]
[375204905,1753584655938,-430.42225984,0.00020273,2]
[375204906,1753584655947,-565.04,0.00020273,2]
[375204907,1753584655957,-303.55032892,0.00020273,2]
[375204908,1753584655967,-460.0,0.00020273,2]
[375204909,1753584655976,-575.96,0.00020273,2]
[375204910,1753584655985,-828.54,0.00020273,2]
[375204911,1753584655995,-460.0,0.00020273,2]
[375204912,1753584656004,-460.0,0.00020273,2]
[375204913,1753584656014,-460.0,0.00020273,2]
[375204914,1753584656024,-1071.54,0.00020273,2]
[375204915,1753584656033,-1826.21,0.00020273,2]
[375204916,1753584656043,-469.62,0.00020273,2]
[375204917,1753584656052,-460.0,0.00020273,2]
[375204918,1753584656062,-460.0,0.00020273,2]
[375204919,1753584656071,-481.95,0.00020273,2]
[375204920,1753584656081,-2416.16,0.00020273,2]
[375204921,1753584656090,-460.0,0.00020273,2]
[375204922,1753584656100,-460.0,0.00020273,2]
[375204923,1753584656110,-460.0,0.00020273,2]
[375204924,1753584656120,-460.0,0.00020273,2]
[375204925,1753584656129,-460.0,0.00020273,2]
[375204926,1753584656140,-1641.34,0.00020273,2]
[375204927,1753584656149,-460.0,0.00020273,2]
[375204928,1753584656159,-708.09,0.00020273,2]
[375204929,1753584656169,-322.8552139,0.00020273,2]
[375204930,1753584656178,-877.28,0.00020273,2]
[375204931,1753584656187,-460.0,0.00020273,2]
[375204932,1753584656197,-737.71,0.00020273,2]
[375204933,1753584656206,-460.0,0.00020273,2]
[375204934,1753584656216,-509.31,0.00020273,2]
[375204935,1753584656226,-460.0,0.00020273,2]
[375204936,1753584656236,-462.72326476,0.00020273,2]
[375204937,1753584656246,-460.0,0.00020273,2]
[375204938,1753584656255,-463.68,0.00020273,2]
[375204939,1753584656265,-2088.08,0.00020273,2]
[375204940,1753584656275,-543.97097694,0.00020273,2]
[375204941,1753584656284,-460.0,0.00020273,2]
[375204942,1753584656294,-1803.05,0.00020273,2]
[375204943,1753584656304,-744.6,0.00020273,2]
[375204944,1753584656314,-460.0,0.00020273,2]
[375204945,1753584656324,-811.3,0.00020273,2]
[375204946,1753584656334,-460.0,0.00020273,2]
[375204947,1753584656343,-460.0,0.00020273,2]
[375204948,1753584656353,-463.50858852,0.00020273,2]
[375204949,1753584656362,-8629.65,0.00020273,2]
[375204950,1753584656371,-512.39,0.00020273,2]
[375204951,1753584656381,-460.0,0.00020273,2]
[375204952,1753584656391,-666.66,0.00020273,2]
[375204953,1753584656400,-720.17,0.00020273,2]
[375204954,1753584656410,-460.0,0.00020273,2]
[375204955,1753584656419,-720.65,0.00020273,2]
[375204956,1753584656429,-460.0,0.00020273,2]
[375204957,1753584656438,-460.0,0.00020273,2]
[375204958,1753584656448,-460.0,0.00020273,2]
[375204959,1753584656457,-460.0,0.00020273,2]
[375204960,1753584656467,-460.0,0.00020273,2]
[375204961,1753584656477,-460.0,0.00020273,2]
[375204962,1753584656487,-463.25321709,0.00020273,2]
[375204963,1753584656496,-460.0,0.00020273,2]
[375204964,1753584656506,-460.0,0.00020273,2]
[375204965,1753584656516,-460.0,0.00020273,2]
[375204966,1753584656526,-460.0,0.00020273,2]
[375204967,1753584656536,-671.34,0.00020273,2]
[375204968,1753584656546,-460.0,0.00020273,2]
[375204969,1753584656555,-460.0,0.00020273,2]
[375204970,1753584656566,-460.0,0.00020273,2]
[375204971,1753584656580,-575.98,0.00020273,2]
[375204972,1753584656589,-460.0,0.00020273,2]
[375204973,1753584656598,-460.0,0.00020273,2]
[375204974,1753584656607,-460.0,0.00020273,2]
[375204975,1753584656617,-815.14,0.00020338,3]
[375204976,1753584656627,-407.58,0.00020338,3]
[375204977,1753584656636,-150.0,0.00020343,2]
[375204978,1753584656646,-3699.02174736,0.00020348,3]
[375204979,1753584656655,-460.0,0.00020547,2]
[375204980,1753584656666,-460.0,0.00020547,2]
[375204981,1753584656675,-460.0,0.00020547,2]
[375204982,1753584656686,-483.43167956,0.00020547,2]
[375204983,1753584656696,-274.20146656,0.00020547,2]
[375204984,1753584656706,-475.13971817,0.00020547,2]
[375204985,1753584656716,-460.0,0.00020547,2]
[375204986,1753584656726,-2270.75,0.00020547,2]
[375204987,1753584656735,-460.0,0.00020547,2]
[375204988,1753584656745,-460.0,0.00020547,2]
[375204989,1753584656757,-460.0,0.00020547,2]
[375204990,1753584656767,-460.0,0.00020547,2]
[375204991,1753584656777,-544.18,0.00020547,2]
[375204992,1753584656786,-460.0,0.00020547,2]
[375204993,1753584656798,-1567.62,0.00020547,2]
[375204994,1753584656809,-460.0,0.00020547,2]
[375204995,1753584656818,-460.0,0.00020547,2]
[375204996,1753584656830,-460.0,0.00020547,2]
[375204997,1753584656841,-484.59,0.00020547,2]
[375204998,1753584656851,-460.0,0.00020547,2]
[375204999,1753584656860,-460.0,0.00020547,2]
[375205000,1753584656871,-460.0,0.00020547,2]
[375205001,1753584656881,-460.0,0.00020547,2]
[375205002,1753584656890,-465.96684877,0.00020547,2]
[375205003,1753584656900,-460.0,0.00020547,2]
[375205004,1753584656909,-460.0,0.00020547,2]
[375205005,1753584656919,-460.0,0.00020547,2]
[375205006,1753584656928,-733.17,0.00020547,2]
[375205007,1753584656938,-460.0,0.00020547,2]
[375205008,1753584656948,-460.0,0.00020547,2]
[375205009,1753584656958,-769.79,0.00020547,2]
[375205010,1753584656967,-628.61,0.00020547,2]
[375205011,1753584656977,-460.0,0.00020547,2]
[375205012,1753584656987,-460.0,0.00020547,2]
[375205013,1753584656997,-487.03756914,0.00020547,2]
[375205014,1753584657007,-460.0,0.00020547,2]
[375205015,1753584657017,-460.0,0.00020547,2]
[375205016,1753584657027,-460.0,0.00020547,2]
[375205017,1753584657037,-460.0,0.00020547,2]
[375205018,1753584657047,-460.0,0.00020547,2]
[375205019,1753584657057,-460.0,0.00020547,2]
[375205020,1753584657069,-462.78,0.00020547,2]
[375205021,1753584657079,-460.0,0.00020547,2]
[375205022,1753584657089,-460.0,0.00020547,2]
[375205023,1753584657099,-460.0,0.00020547,2]
[375205024,1753584657109,-460.0,0.00020547,2]
[375205025,1753584657119,-467.68,0.00020547,2]
[375205026,1753584657128,-460.0,0.00020547,2]
[375205027,1753584657139,-460.0,0.00020547,2]
[375205028,1753584657149,-460.0,0.00020547,2]
[375205029,1753584657159,-460.0,0.00020547,2]
[375205030,1753584657172,-1855.52,0.00020547,2]
[375205031,1753584657183,-460.0,0.00020547,2]
[375205032,1753584657193,-460.0,0.00020547,2]
[375205033,1753584657205,-460.0,0.00020547,2]
[375205034,1753584657216,-460.0,0.00020547,2]
[375205035,1753584657226,-460.0,0.00020547,2]
[375205036,1753584657235,-460.0,0.00020547,2]
[375205037,1753584657246,-882.06,0.00020547,2]
[375205038,1753584657255,-688.84,0.00020547,2]
[375205039,1753584657266,-460.0,0.00020547,2]
[375205040,1753584657276,-460.0,0.00020547,2]
[375205041,1753584657287,-460.0,0.00020547,2]
[375205042,1753584657296,-460.0,0.00020547,2]
[375205043,1753584657306,-4238.22,0.00020547,2]
[375205044,1753584657317,-460.0,0.00020547,2]
[375205045,1753584657326,-460.0,0.00020547,2]
[375205046,1753584657337,-460.0,0.00020547,2]
[375205047,1753584657348,-460.0,0.00020547,2]
[375205048,1753584657358,-2826.79,0.00020547,2]
[375205049,1753584657368,-460.0,0.00020547,2]
[375205050,1753584657379,-460.0,0.00020547,2]
[375205051,1753584657390,-460.0,0.00020547,2]
[375205052,1753584657400,-1620.32,0.00020547,2]
[375205053,1753584657412,-480.38,0.00020547,2]
[375205054,1753584657423,-465.12329507,0.00020547,2]
[375205055,1753584657433,-2191.67,0.00020547,2]
[375205056,1753584657444,-616.59,0.00020547,2]
[375205057,1753584657455,-533.3,0.00020547,2]
[375205058,1753584657466,-460.0,0.00020547,2]
[375205059,1753584657476,-460.0,0.00020547,2]
[375205060,1753584657485,-1034.53,0.00020547,2]
[375205061,1753584657495,-460.0,0.00020547,2]
[375205062,1753584657504,-460.0,0.00020547,2]
[375205063,1753584657514,-1110.96,0.00020547,2]
[375205064,1753584657524,-460.0,0.00020547,2]
[375205065,1753584657534,-460.0,0.00020547,2]
[375205066,1753584657543,-460.0,0.00020547,2]
[375205067,1753584657552,-2727.04,0.00020547,2]
[375205068,1753584657562,-460.0,0.00020547,2]
[375205069,1753584657573,-460.0,0.00020547,2]
[375205070,1753584657586,-460.0,0.00020547,2]
[375205071,1753584657595,-1595.2,0.00020547,2]
[375205072,1753584657604,-565.04,0.00020547,2]
[375205073,1753584657615,-575.96,0.00020547,2]
[375205074,1753584657625,-460.0,0.00020547,2]
[375205075,1753584657634,-828.54,0.00020547,2]
[375205076,1753584657644,-460.0,0.00020547,2]
[375205077,1753584657738,-460.0,0.00020547,2]
[375205078,1753584657749,-470.88676938,0.00020547,2]
[375205079,1753584657758,-1071.54,0.00020547,2]
[375205080,1753584657768,-1826.21,0.00020547,2]
[375205081,1753584657778,-469.62,0.00020547,2]
[375205082,1753584657787,-460.0,0.00020547,2]
[375205083,1753584657797,-460.0,0.00020547,2]
[375205084,1753584657806,-481.95,0.00020547,2]
[375205085,1753584657815,-2416.16,0.00020547,2]
[375205086,1753584657825,-460.0,0.00020547,2]
[375205087,1753584657835,-460.0,0.00020547,2]
[375205088,1753584657844,-460.0,0.00020547,2]
[375205089,1753584657853,-460.0,0.00020547,2]
[375205090,1753584657863,-460.0,0.00020547,2]
[375205091,1753584657873,-1641.34,0.00020547,2]
[375205092,1753584657882,-460.0,0.00020547,2]
[375205093,1753584657892,-708.09,0.00020547,2]
[375205094,1753584657901,-877.28,0.00020547,2]
[375205095,1753584657910,-460.0,0.00020547,2]
[375205096,1753584657920,-737.71,0.00020547,2]
[375205097,1753584657929,-509.31,0.00020547,2]
[375205098,1753584657939,-460.0,0.00020547,2]
[375205099,1753584657948,-460.0,0.00020547,2]
[375205100,1753584657957,-460.0,0.00020547,2]
[375205101,1753584657967,-463.68,0.00020547,2]
[375205102,1753584657976,-2088.08,0.00020547,2]
[375205103,1753584657986,-460.0,0.00020547,2]
[375205104,1753584657996,-1803.05,0.00020547,2]
[375205105,1753584658006,-744.6,0.00020547,2]
[375205106,1753584658017,-811.3,0.00020547,2]
[375205107,1753584658027,-476.52832246,0.00020547,2]
[375205108,1753584658037,-460.0,0.00020547,2]
[375205109,1753584658047,-8629.65,0.00020547,2]
[375205110,1753584658056,-512.39,0.00020547,2]
[375205111,1753584658066,-666.66,0.00020547,2]
[375205112,1753584658075,-460.0,0.00020547,2]
[375205113,1753584658085,-720.17,0.00020547,2]
[375205114,1753584658095,-460.0,0.00020547,2]
[375205115,1753584658107,-720.65,0.00020547,2]
[375205116,1753584658118,-460.0,0.00020547,2]
[375205117,1753584658130,-460.0,0.00020547,2]
[375205118,1753584658140,-460.0,0.00020547,2]
[375205119,1753584658151,-460.0,0.00020547,2]
[375205120,1753584658163,-460.0,0.00020547,2]
[375205121,1753584658174,-460.0,0.00020547,2]
[375205122,1753584658185,-460.0,0.00020547,2]
[375205123,1753584658196,-460.0,0.00020547,2]
[375205124,1753584658207,-460.0,0.00020547,2]
[375205125,1753584658216,-671.34,0.00020547,2]
[375205126,1753584658226,-460.0,0.00020547,2]
[375205127,1753584658236,-155.97,0.00020547,2]
[375205128,1753584658247,-460.0,0.00020547,2]
[375205129,1753584658259,-575.98,0.00020547,2]
[375205130,1753584658269,-460.0,0.00020547,2]
[375205131,1753584658278,-460.0,0.00020547,2]
[375205132,1753584658288,-460.0,0.00020547,2]
[375205133,1753584658298,-216.01841554,0.00020576,2]
[375205134,1753584658308,-3699.02174736,0.0002059,3]
[375205135,1753584658319,-2000.0,0.00020616,2]
[375205136,1753584658328,-1680.0,0.00020675,2]
[375205137,1753584658338,-189.04224927,0.00020685,3]
[375205138,1753584658348,-160.0,0.00020691,2]
[375205139,1753584658358,-460.0,0.00020821,2]
[375205140,1753584658367,-460.0,0.00020821,2]
[375205141,1753584658377,-460.0,0.00020821,2]
[375205142,1753584658386,-2270.75,0.00020821,2]
[375205143,1753584658396,-460.0,0.00020821,2]
[375205144,1753584658405,-460.0,0.00020821,2]
[375205145,1753584658415,-460.0,0.00020821,2]
[375205146,1753584658424,-460.0,0.00020821,2]
[375205147,1753584658434,-544.18,0.00020821,2]
[375205148,1753584658443,-460.0,0.00020821,2]
[375205149,1753584658453,-1567.62,0.00020821,2]
[375205150,1753584658463,-460.0,0.00020821,2]
[375205151,1753584658473,-460.0,0.00020821,2]
[375205152,1753584658483,-484.59,0.00020821,2]
[375205153,1753584658493,-289.55402535,0.00020821,2]
[375205154,1753584658503,-470.33527893,0.00020821,2]
[375205155,1753584658512,-460.0,0.00020821,2]
[375205156,1753584658522,-460.0,0.00020821,2]
[375205157,1753584658532,-460.0,0.00020821,2]
[375205158,1753584658542,-460.0,0.00020821,2]
[375205159,1753584658551,-733.17,0.00020821,2]
[375205160,1753584658561,-460.0,0.00020821,2]
[375205161,1753584658570,-769.79,0.00020821,2]
[375205162,1753584658583,-628.61,0.00020821,2]
[375205163,1753584658593,-460.0,0.00020821,2]
[375205164,1753584658603,-472.21419956,0.00020821,2]
[375205165,1753584658612,-460.0,0.00020821,2]
[375205166,1753584658622,-460.0,0.00020821,2]
[375205167,1753584658632,-460.0,0.00020821,2]
[375205168,1753584658642,-424.26528013,0.00020821,2]
[375205169,1753584658651,-460.0,0.00020821,2]
[375205170,1753584658662,-462.78,0.00020821,2]
[375205171,1753584658671,-460.0,0.00020821,2]
[375205172,1753584658682,-460.0,0.00020821,2]
[375205173,1753584658692,-460.0,0.00020821,2]
[375205174,1753584658703,-460.0,0.00020821,2]
[375205175,1753584658712,-467.68,0.00020821,2]
[375205176,1753584658722,-460.0,0.00020821,2]
[375205177,1753584658731,-460.0,0.00020821,2]
[375205178,1753584658741,-460.0,0.00020821,2]
[375205179,1753584658751,-1855.52,0.00020821,2]
[375205180,1753584658761,-460.0,0.00020821,2]
[375205181,1753584658770,-460.0,0.00020821,2]
[375205182,1753584658780,-460.0,0.00020821,2]
[375205183,1753584658790,-460.0,0.00020821,2]
[375205184,1753584658799,-460.0,0.00020821,2]
[375205185,1753584658809,-460.0,0.00020821,2]
[375205186,1753584658818,-882.06,0.00020821,2]
[375205187,1753584658828,-688.84,0.00020821,2]
[375205188,1753584658837,-460.0,0.00020821,2]
[375205189,1753584658847,-460.0,0.00020821,2]
[375205190,1753584658857,-460.0,0.00020821,2]
[375205191,1753584658866,-460.0,0.00020821,2]
[375205192,1753584658876,-4238.22,0.00020821,2]
[375205193,1753584658886,-460.0,0.00020821,2]
[375205194,1753584658896,-460.0,0.00020821,2]
[375205195,1753584658906,-460.0,0.00020821,2]
[375205196,1753584658917,-2826.79,0.00020821,2]
[375205197,1753584658928,-460.0,0.00020821,2]
[375205198,1753584658938,-460.0,0.00020821,2]
[375205199,1753584658949,-460.0,0.00020821,2]
[375205200,1753584658958,-1620.32,0.00020821,2]
[375205201,1753584658967,-480.38,0.00020821,2]
[375205202,1753584658977,-2191.67,0.00020821,2]
[375205203,1753584658986,-616.59,0.00020821,2]
[375205204,1753584658995,-533.3,0.00020821,2]
[375205205,1753584659005,-460.0,0.00020821,2]
[375205206,1753584659015,-193.6630861,0.00020821,2]
[375205207,1753584659025,-1034.53,0.00020821,2]
[375205208,1753584659035,-203.94008241,0.00020821,2]
[375205209,1753584659062,-256.05991759,0.00020821,2]
[375205210,1753584659073,-460.0,0.00020821,2]
[375205211,1753584659082,-1110.96,0.00020821,2]
[375205212,1753584659092,-460.0,0.00020821,2]
[375205213,1753584659101,-460.0,0.00020821,2]
[375205214,1753584659111,-460.0,0.00020821,2]
[375205215,1753584659120,-2727.04,0.00020821,2]
[375205216,1753584659130,-460.0,0.00020821,2]
[375205217,1753584659139,-479.35246234,0.00020821,2]
[375205218,1753584659148,-460.0,0.00020821,2]
[375205219,1753584659158,-1595.2,0.00020821,2]
[375205220,1753584659168,-565.04,0.00020821,2]
[375205221,1753584659177,-575.96,0.00020821,2]
[375205222,1753584659186,-469.36161508,0.00020821,2]
[375205223,1753584659195,-828.54,0.00020821,2]
[375205224,1753584659204,-460.0,0.00020821,2]
[375205225,1753584659213,-460.0,0.00020821,2]
[375205226,1753584659223,-1071.54,0.00020821,2]
[375205227,1753584659234,-1826.21,0.00020821,2]
[375205228,1753584659245,-469.62,0.00020821,2]
[375205229,1753584659254,-460.0,0.00020821,2]
[375205230,1753584659264,-460.0,0.00020821,2]
[375205231,1753584659273,-481.95,0.00020821,2]
[375205232,1753584659284,-2416.16,0.00020821,2]
[375205233,1753584659294,-460.0,0.00020821,2]
[375205234,1753584659304,-460.0,0.00020821,2]
[375205235,1753584659314,-460.0,0.00020821,2]
[375205236,1753584659324,-460.0,0.00020821,2]
[375205237,1753584659335,-460.0,0.00020821,2]